bitfinex/quotes_SOLUSD_20250724
["timestamp","ask_amount","ask_price","bid_price","bid_amount"]
[1753363680342,0.03,186.65,186.64,82.69183003]
[1753363681034,0.03,186.65,186.64,91.53899169]
[1753363681249,0.03,186.65,186.64,108.32367566]
[1753363681455,0.03,186.65,186.64,82.69183003]
[1753363681456,0.7,186.65,186.64,82.69183003]
[1753363681642,9.54716166,186.65,186.64,82.69183003]
[1753363682042,0.7,186.65,186.64,82.69183003]
[1753363682244,0.7,186.65,186.64,108.32367566]
[1753363682538,0.7,186.65,186.64,109.04367566]
[1753363682539,0.03,186.65,186.64,109.04367566]
[1753363682936,0.03,186.65,186.64,109.3279988]
[1753363683646,0.03,186.65,186.64,135.3279988]
[1753363684363,1e-08,186.67,186.66,26.0]
[1753363684553,0.03,186.68,186.67,16.78468397]
[1753363684751,0.03,186.68,186.67,34.76333043]
[1753363684951,0.03,186.68,186.67,35.48333043]
[1753363685137,0.03,186.68,186.67,118.71086517]
[1753363685332,0.03,186.71,186.7,44.33178397]
[1753363685559,0.67,186.84,186.76,0.28432314]
[1753363685741,0.67,186.84,186.8,8.84716166]
[1753363685948,0.67,186.83,186.79,47.22716166]
[1753363686140,0.67,186.82,186.79,47.22716166]
[1753363686345,8.1768,186.85,186.81,8.84716166]
[1753363686666,2.2165,186.85,186.82,8.84716166]
[1753363686832,0.67,186.88,186.84,8.84716166]
[1753363687036,1.5086,186.9,186.86,8.84716166]
[1753363687232,0.67,186.89,186.85,8.84716166]
[1753363687465,0.67,186.89,186.84,38.38]
[1753363687466,0.67,186.89,186.84,47.22716166]
[1753363687629,0.67,186.88,186.85,16.78468397]
[1753363687829,0.67,186.87,186.83,38.38]
[1753363688036,8.84716166,186.87,186.83,38.38]
[1753363688257,0.67,186.86,186.83,38.38]
[1753363688437,1.5086,186.9,186.83,38.38]
[1753363688438,8.84716166,186.88,186.83,47.22716166]
[1753363688638,0.69,186.87,186.83,47.22716166]
[1753363688854,8.84716166,186.88,186.83,47.22716166]
[1753363689066,1.5086,186.9,186.83,38.38]
[1753363689067,9.53716166,186.86,186.83,38.38]
[1753363689256,0.69,186.86,186.81,47.22716166]
[1753363689435,0.69,186.85,186.82,8.84716166]
[1753363690252,0.69,186.84,186.81,47.22716166]
[1753363690435,1.5086,186.9,186.82,8.84716166]
[1753363690631,0.69,186.89,186.85,8.84716166]
[1753363691159,0.69,186.88,186.84,25.63184563]
[1753363691939,0.69,186.87,186.84,25.63184563]
[1753363692147,2.1986,186.9,186.85,8.84716166]
[1753363692460,0.69,186.9,186.86,8.84716166]
[1753363693235,8.84716166,186.88,186.84,16.78468397]
[1753363693558,0.69,186.87,186.84,16.78468397]
[1753363693742,8.84716166,186.88,186.83,47.22716166]
[1753363693943,0.69,186.86,186.83,38.38]
[1753363694560,8.84716166,186.84,186.78,8.84716166]
[1753363694758,9.53716166,186.83,186.79,38.36]
[1753363694962,0.69,186.82,186.79,38.36]
[1753363695438,8.84716166,186.84,186.79,38.36]
[1753363695639,9.53716166,186.87,186.81,8.84716166]
[1753363695853,8.84716166,186.86,186.81,8.84716166]
[1753363696063,0.69,186.85,186.81,8.84716166]
[1753363696434,8.84716166,186.87,186.82,8.84716166]
[1753363696744,9.53716166,186.87,186.83,16.78468397]
[1753363696944,9.53716166,186.86,186.82,16.78468397]
[1753363697261,9.53716166,186.85,186.79,47.20716166]
[1753363697451,8.84716166,186.82,186.78,38.36]
[1753363697658,0.69,186.82,186.78,38.36]
[1753363697838,8.84716166,186.85,186.79,26.32184563]
[1753363699070,9.53716166,186.86,186.8,8.84716166]
[1753363699262,9.53716166,186.86,186.81,38.36]
[1753363699564,0.69,186.85,186.81,38.36]
[1753363700157,0.69,186.84,186.81,38.36]
[1753363700344,0.69,186.84,186.8,89.0]
[1753363700541,8.84716166,186.85,186.8,97.84716166]
[1753363700968,9.53716166,186.85,186.8,97.84716166]
[1753363701663,8.84716166,186.83,186.77,8.84716166]
[1753363701853,8.84716166,186.81,186.77,16.78468397]
[1753363702051,9.53716166,186.81,186.77,16.78468397]
[1753363702252,0.69,186.8,186.77,16.78468397]
[1753363702452,9.53716166,186.82,186.77,16.78468397]
[1753363702655,26.0,186.88,186.81,8.84716166]
[1753363702861,1.569,186.91,186.87,8.84716166]
[1753363703068,1.569,186.91,186.88,0.69]
[1753363703251,1.569,186.91,186.88,9.53716166]
[1753363703452,1.569,186.91,186.88,8.84716166]
[1753363704150,9.53716166,186.93,186.88,8.84716166]
[1753363704354,0.69,186.93,186.86,16.78468397]
[1753363704558,0.69,186.93,186.88,8.84716166]
[1753363704759,0.69,186.93,186.86,17.47468397]
[1753363704970,0.69,186.93,186.88,8.84716166]
[1753363705354,0.69,186.92,186.88,8.84716166]
[1753363705752,0.69,186.91,186.82,0.69]
[1753363705964,8.84716166,186.9,186.84,8.84716166]
[1753363706153,8.84716166,186.9,186.85,8.84716166]
[1753363706351,9.53716166,186.9,186.85,8.84716166]
[1753363706550,0.69,186.89,186.83,0.69]
[1753363706782,0.69,186.89,186.85,8.84716166]
[1753363707159,9.53716166,186.92,186.86,8.84716166]
[1753363707365,9.53716166,186.92,186.87,8.84716166]
[1753363707366,0.03,186.88,186.87,8.84716166]
[1753363707570,0.03,186.88,186.87,26.32184563]
[1753363709279,0.03,186.88,186.87,26.60616877]
[1753363709874,0.03,186.88,186.87,26.32184563]
[1753363710666,0.03,186.88,186.87,26.60616877]
[1753363713171,0.03,186.88,186.87,17.47468397]
[1753363713377,0.03,186.88,186.87,8.84716166]
[1753363713969,0.03,186.88,186.86,8.84716166]
[1753363714173,0.03,186.88,186.87,38.64]
[1753363715569,0.03,186.88,186.87,47.48716166]
[1753363715777,0.03,186.88,186.87,48.17716166]
[1753363716684,0.03,186.88,186.87,47.48716166]
[1753363717184,0.03,186.88,186.87,48.17716166]
[1753363718260,0.72,186.88,186.85,153.6]
[1753363718568,8.87716166,186.88,186.85,38.6]
[1753363718768,0.72,186.87,186.85,38.6]
[1753363719175,0.03,186.88,186.85,38.6]
[1753363719591,0.72,186.87,186.85,38.6]
[1753363719880,8.87716166,186.88,186.83,38.6]
[1753363720079,0.03,186.88,186.85,8.84716166]
[1753363720382,0.03,186.88,186.85,47.46716166]
[1753363720566,0.03,186.88,186.86,8.84716166]
[1753363721056,0.03,186.88,186.85,38.62]
[1753363721369,0.03,186.88,186.85,47.46716166]
[1753363722090,0.03,186.88,186.56,18.40801916]
[1753363722091,8.84716166,186.86,186.78,89.0]
[1753363722281,2.334,186.87,186.76,8.84716166]
[1753363722282,8.84716166,186.82,186.76,8.84716166]
[1753363722461,9.56716166,186.82,186.77,64.62]
[1753363722657,1.614,186.87,186.77,64.62]
[1753363722658,8.84716166,186.86,186.8,8.84716166]
[1753363722965,2.334,186.87,186.82,8.84716166]
[1753363723163,8.87716166,186.88,186.83,8.84716166]
[1753363723482,9.59716166,186.88,186.83,8.84716166]
[1753363723686,0.03,186.88,186.85,8.84716166]
[1753363724076,0.03,186.88,186.85,9.55716166]
[1753363724264,0.03,186.88,186.86,8.84716166]
[1753363725492,0.03,186.88,186.84,38.64]
[1753363725493,0.03,186.88,186.84,47.48716166]
[1753363725789,0.03,186.88,186.85,8.84716166]
[1753363726081,0.75,186.88,186.84,47.48716166]
[1753363726892,0.75,186.88,186.85,8.84716166]
[1753363727393,0.75,186.88,186.84,47.48716166]
[1753363727901,0.03,186.88,186.84,38.64]
[1753363728061,0.03,186.88,186.85,8.84716166]
[1753363729167,0.03,186.88,186.85,5.41615997]
[1753363730088,0.75,186.88,186.84,38.64]
[1753363730465,0.03,186.88,186.84,38.64]
[1753363730889,0.72,186.87,186.83,64.56]
[1753363731192,0.72,186.86,186.83,64.56]
[1753363731366,0.03,186.88,186.83,64.56]
[1753363731690,0.75,186.88,186.83,65.27]
[1753363732395,0.72,186.87,186.83,64.56]
[1753363733787,0.03,186.88,186.83,65.27]
[1753363734198,0.75,186.88,186.83,65.27]
[1753363735473,0.75,186.88,186.81,5.41615997]
[1753363735474,5.41615997,186.86,186.81,5.41615997]
[1753363735784,0.72,186.85,186.81,43.95615997]
[1753363736195,5.41615997,186.87,186.81,43.95615997]
[1753363736392,6.13615997,186.87,186.81,44.66615997]
[1753363736571,5.44615997,186.88,186.83,5.41615997]
[1753363736879,6.16615997,186.88,186.83,0.71]
[1753363737081,0.72,186.87,186.82,5.41615997]
[1753363737292,0.72,186.86,186.81,44.66615997]
[1753363737496,0.72,186.86,186.82,6.12615997]
[1753363737718,0.72,186.85,186.81,38.54]
[1753363737899,6.13615997,186.87,186.81,44.66615997]
[1753363738201,6.13615997,186.87,186.82,5.41615997]
[1753363738499,5.41615997,186.87,186.83,0.71]
[1753363738679,6.13615997,186.87,186.83,0.71]
[1753363738875,5.41615997,186.87,186.82,5.41615997]
[1753363739202,0.72,186.86,186.81,43.95615997]
[1753363739385,5.41615997,186.87,186.82,5.41615997]
[1753363739576,6.13615997,186.87,186.82,6.12615997]
[1753363740192,0.03,186.88,186.83,6.12615997]
[1753363740501,0.03,186.88,186.85,5.41615997]
[1753363740695,0.03,186.88,186.84,5.41615997]
[1753363740895,0.03,186.88,186.84,6.12615997]
[1753363741095,5.44615997,186.88,186.82,94.41615997]
[1753363741399,5.44615997,186.88,186.82,89.0]
[1753363741400,5.41615997,186.86,186.82,89.0]
[1753363741598,0.72,186.85,186.82,89.0]
[1753363741906,5.41615997,186.86,186.82,89.0]
[1753363742080,6.13615997,186.85,186.82,89.0]
[1753363742288,5.41615997,186.83,186.75,174.90525248]
[1753363742609,5.41615997,186.8,186.75,124.40525248]
[1753363742783,5.41615997,186.8,186.75,125.11525248]
[1753363742983,0.72,186.82,186.76,6.12615997]
[1753363742984,5.41615997,186.82,186.76,6.12615997]
[1753363743482,1.5605,186.83,186.75,124.40525248]
[1753363743483,5.41615997,186.8,186.75,124.40525248]
[1753363743685,6.13615997,186.8,186.75,125.11525248]
[1753363744096,5.41615997,186.8,186.76,0.71]
[1753363744479,0.72,186.79,186.75,124.40525248]
[1753363744885,5.41615997,186.8,186.75,125.11525248]
[1753363745227,5.41615997,186.8,186.75,124.40525248]
[1753363745387,6.97665997,186.83,186.77,5.41615997]
[1753363745700,6.97665997,186.83,186.75,124.40525248]
[1753363745701,5.41615997,186.81,186.75,85.90525248]
[1753363745886,6.13615997,186.81,186.75,129.82141245]
[1753363746091,5.41615997,186.8,186.75,124.40525248]
[1753363746293,6.13615997,186.8,186.75,125.11525248]
[1753363746492,5.41615997,186.82,186.76,6.12615997]
[1753363746693,6.97665997,186.83,186.77,6.12615997]
[1753363746895,5.41615997,186.82,186.77,0.71]
[1753363747481,5.41615997,186.82,186.78,0.71]
[1753363747684,6.3702,186.85,186.79,6.12615997]
[1753363747902,5.41615997,186.84,186.79,6.12615997]
[1753363748100,5.41615997,186.83,186.78,38.5]
[1753363748303,5.41615997,186.8,186.76,26.0]
[1753363748602,6.12615997,186.79,186.76,26.0]
[1753363748806,6.12615997,186.79,186.75,85.90525248]
[1753363749396,5.41615997,186.8,186.75,91.32141245]
[1753363749600,5.41615997,186.81,186.76,6.08615997]
[1753363749905,38.5,186.86,186.76,6.08615997]
[1753363749906,5.41615997,186.82,186.77,0.67]
[1753363750220,5.41615997,186.79,186.75,85.90525248]
[1753363750415,6.12615997,186.79,186.75,85.90525248]
[1753363750582,5.41615997,186.79,186.75,86.57525248]
[1753363750783,5.41615997,186.78,186.75,85.90525248]
[1753363751084,5.41615997,186.77,186.74,38.48]
[1753363751402,5.41615997,186.79,186.75,0.67]
[1753363751590,0.14216157,186.85,186.75,0.67]
[1753363751591,0.71,186.81,186.76,0.67]
[1753363751793,5.41615997,186.81,186.77,0.67]
[1753363751990,0.71,186.8,186.74,6.08615997]
[1753363752307,5.41615997,186.79,186.74,6.08615997]
[1753363752608,5.41615997,186.79,186.72,81.26468397]
[1753363752609,5.41615997,186.78,186.72,69.89615997]
[1753363752907,5.41615997,186.76,186.73,16.78468397]
[1753363753284,5.41615997,186.76,186.72,26.67]
[1753363753514,5.41615997,186.77,186.72,26.67]
[1753363753892,5.41615997,186.77,186.73,0.67]
[1753363754093,5.41615997,186.79,186.74,0.67]
[1753363754303,5.41615997,186.8,186.74,6.08615997]
[1753363754510,5.41615997,186.8,186.75,0.67]
[1753363754807,5.41615997,186.81,186.76,6.08615997]
[1753363755012,6.12615997,186.8,186.74,22.87084394]
[1753363755187,5.41615997,186.81,186.77,0.67]
[1753363755387,2.2885,186.87,186.79,5.41615997]
[1753363755588,1.5785,186.87,186.83,5.41615997]
[1753363755799,0.03,186.88,186.84,6.08615997]
[1753363756000,0.03,186.88,186.84,0.67]
[1753363756200,0.71,186.87,186.82,5.41615997]
[1753363756404,0.71,186.87,186.81,22.20084394]
[1753363756601,0.71,186.87,186.82,6.08615997]
[1753363757503,6.12615997,186.87,186.82,6.08615997]
[1753363758388,0.71,186.87,186.82,6.08615997]
[1753363758884,0.71,186.86,186.81,16.78468397]
[1753363759093,5.41615997,186.87,186.81,5.41615997]
[1753363759294,0.71,186.86,186.81,5.41615997]
[1753363759495,0.71,186.85,186.8,31.41615997]
[1753363760293,0.71,186.85,186.8,32.08615997]
[1753363760897,0.71,186.85,186.81,5.41615997]
[1753363761295,5.41615997,186.86,186.81,5.41615997]
[1753363761503,0.03,186.88,186.83,5.41615997]
[1753363761908,0.03,186.88,186.84,6.08615997]
[1753363762204,0.03,186.88,186.83,5.41615997]
[1753363762514,0.03,186.88,186.8,42.78468397]
[1753363762515,0.03,186.87,186.82,5.41615997]
[1753363762917,0.03,186.87,186.82,6.08615997]
[1753363763901,0.74,186.87,186.82,6.08615997]
[1753363765302,0.03,186.87,186.83,0.67]
[1753363765634,0.74,186.87,186.82,5.41615997]
[1753363765800,0.74,186.87,186.8,43.45468397]
[1753363765801,0.03,186.87,186.8,43.45468397]
[1753363766001,0.71,186.86,186.81,5.41615997]
[1753363766394,0.71,186.86,186.81,6.08615997]
[1753363766809,5.41615997,186.84,186.75,6.5449]
[1753363767003,5.41615997,186.82,186.76,6.08615997]
[1753363767710,5.41615997,186.81,186.76,6.08615997]
[1753363767907,5.41615997,186.81,186.76,5.41615997]
[1753363768103,5.41615997,186.82,186.77,32.08615997]
[1753363768308,5.41615997,186.82,186.78,0.67]
[1753363768819,5.41615997,186.81,186.75,5.41615997]
[1753363769002,5.41615997,186.81,186.76,0.67]
[1753363769203,5.41615997,186.81,186.77,0.67]
[1753363769408,6.12615997,186.81,186.75,22.87084394]
[1753363770703,5.41615997,186.8,186.75,6.08615997]
[1753363770925,5.41615997,186.8,186.75,5.41615997]
[1753363771127,5.41615997,186.8,186.76,0.67]
[1753363771508,5.41615997,186.81,186.77,0.67]
[1753363771713,5.41615997,186.82,186.78,0.67]
[1753363772627,6.12615997,186.82,186.76,6.08615997]
[1753363772925,5.41615997,186.82,186.77,0.67]
[1753363773122,5.41615997,186.82,186.76,5.41615997]
[1753363773301,7.06735997,186.83,186.78,6.08615997]
[1753363773504,5.41615997,186.84,186.79,6.08615997]
[1753363773718,6.12615997,186.84,186.79,0.67]
[1753363774203,6.12615997,186.83,186.77,32.08615997]
[1753363774610,5.41615997,186.82,186.77,26.67]
[1753363774818,6.12615997,186.82,186.77,26.67]
[1753363776018,0.71,186.82,186.78,0.67]
[1753363776220,0.03,186.87,186.79,0.67]
[1753363776221,5.41615997,186.84,186.79,0.67]
[1753363776426,5.41615997,186.84,186.78,22.20084394]
[1753363776727,6.12615997,186.84,186.79,0.67]
[1753363777029,2.82175115,186.87,186.8,6.08615997]
[1753363777229,2.82175115,186.87,186.78,16.78468397]
[1753363777230,5.44615997,186.87,186.81,5.41615997]
[1753363777744,5.44615997,186.87,186.82,0.67]
[1753363778030,0.03,186.87,186.84,5.41615997]
[1753363778337,0.03,186.87,186.85,0.67]
[1753363778832,0.03,186.87,186.86,0.65]
[1753363780111,0.03,186.87,186.86,6.06615997]
[1753363780415,0.03,186.87,186.84,6.06615997]
[1753363781322,0.03,186.87,186.85,5.41615997]
[1753363781517,0.03,186.87,186.86,5.41615997]
[1753363781735,0.03,186.87,186.86,6.06615997]
[1753363782244,0.03,186.87,186.86,23.13516708]
[1753363787922,0.03,186.87,186.86,61.51516708]
[1753363788646,0.03,186.87,186.86,150.51516708]
[1753363789348,6.15615997,186.87,186.79,89.0]
[1753363789549,5.41615997,186.82,186.72,0.53556126]
[1753363789751,5.41615997,186.8,186.72,1.18556126]
[1753363790050,6.12615997,186.83,186.75,26.0]
[1753363790232,0.71,186.83,186.78,5.41615997]
[1753363790424,5.41615997,186.85,186.79,0.65]
[1753363790746,6.12615997,186.86,186.8,5.41615997]
[1753363791044,5.41615997,186.85,186.79,6.06615997]
[1753363792240,5.41615997,186.82,186.76,22.20084394]
[1753363792647,5.41615997,186.82,186.77,5.41615997]
[1753363792838,6.12615997,186.83,186.77,5.41615997]
[1753363793052,6.12615997,186.83,186.77,6.06615997]
[1753363793236,5.41615997,186.79,186.73,0.65]
[1753363793431,5.41615997,186.8,186.74,22.20084394]
[1753363794247,5.41615997,186.79,186.74,22.20084394]
[1753363794453,5.41615997,186.8,186.74,22.85084394]
[1753363794648,26.71,186.85,186.77,5.41615997]
[1753363794830,5.41615997,186.82,186.77,5.41615997]
[1753363795026,0.71,186.84,186.77,5.41615997]
[1753363795351,5.41615997,186.84,186.78,6.06615997]
[1753363795539,5.41615997,186.84,186.79,5.41615997]
[1753363795725,5.41615997,186.84,186.8,0.65]
[1753363796739,6.12615997,186.84,186.79,5.41615997]
[1753363796941,0.71,186.83,186.75,26.0]
[1753363797139,0.71,186.83,186.74,17.43468397]
[1753363797140,5.41615997,186.8,186.74,61.25084394]
[1753363797335,6.12615997,186.8,186.74,61.25084394]
[1753363797544,0.71,186.8,186.74,61.25084394]
[1753363797730,6.12615997,186.8,186.74,61.25084394]
[1753363798157,5.41615997,186.79,186.74,38.4]
[1753363798456,5.41615997,186.79,186.74,39.05]
[1753363798656,2.2998,186.81,186.75,0.65]
[1753363798657,5.41615997,186.8,186.75,0.65]
[1753363799034,6.12615997,186.8,186.75,0.65]
[1753363799559,5.41615997,186.79,186.75,0.65]
[1753363799776,5.41615997,186.76,186.71,0.06]
[1753363800055,5.41615997,186.72,186.71,0.06]
[1753363800272,6.12615997,186.72,186.71,0.06]
[1753363800434,6.4434,186.83,186.71,0.71]
[1753363800635,5.41615997,186.74,186.71,0.06]
[1753363801141,5.41615997,186.72,186.71,0.06]
[1753363801342,6.92705997,186.72,186.7,94.20581789]
[1753363801574,39.11,186.73,186.67,0.06]
[1753363801575,26.0,186.68,186.67,0.06]
[1753363801784,53.61700391,186.68,186.67,0.06]
[1753363802069,53.90132705,186.68,186.67,0.06]
[1753363802443,53.90132705,186.68,186.63,0.06]
[1753363802645,5.41615997,186.64,186.63,0.06]
[1753363802868,60.90516708,186.64,186.63,0.06]
[1753363803084,66.32132705,186.64,186.63,0.06]
[1753363803370,70.90516708,186.64,186.63,0.06]
[1753363803581,70.90516708,186.64,186.53,69.40439658]
[1753363803582,17.06900711,186.57,186.53,69.40439658]
[1753363803793,43.06900711,186.54,186.53,69.40439658]
[1753363804064,26.0,186.5,186.48,0.06]
[1753363804271,69.91615997,186.5,186.48,0.06]
[1753363804653,26.0,186.46,186.45,0.2]
[1753363804842,31.41615997,186.46,186.45,0.2]
[1753363805252,44.03361292,186.46,186.45,0.2]
[1753363805451,17.74928978,186.45,186.41,0.2]
[1753363805669,26.0,186.42,186.41,0.2]
[1753363805874,73.45464489,186.42,186.41,0.2]
[1753363806543,0.28432314,186.48,186.41,0.2]
[1753363806747,8.87464489,186.42,186.41,0.2]
[1753363807562,26.0,186.48,186.41,0.85]
[1753363807748,47.45464489,186.49,186.43,8.87464489]
[1753363807949,8.87464489,186.48,186.42,26.30932886]
[1753363808149,8.87464489,186.48,186.42,25.65932886]
[1753363808462,8.87464489,186.49,186.44,16.78468397]
[1753363808656,8.87464489,186.5,186.45,9.57464489]
[1753363808855,47.49464489,186.53,186.47,8.87464489]
[1753363809074,47.49464489,186.53,186.48,9.57464489]
[1753363809385,8.87464489,186.52,186.47,16.78468397]
[1753363809672,38.62,186.53,186.45,0.7]
[1753363809972,8.87464489,186.46,186.41,9.07464489]
[1753363810153,8.87464489,186.46,186.41,0.2]
[1753363810347,8.87464489,186.42,186.41,0.2]
[1753363811969,9.15896803,186.42,186.41,0.2]
[1753363812183,26.0,186.4,186.39,0.06]
[1753363812479,73.79896803,186.4,186.39,0.06]
[1753363812987,27.06900711,186.39,186.37,0.06]
[1753363813167,43.06900711,186.37,186.36,0.06]
[1753363813361,90.583652,186.37,186.36,0.06]
[1753363813554,17.06900711,186.36,186.35,0.06]
[1753363813756,26.0,186.39,186.35,0.06]
[1753363813954,8.87464489,186.36,186.35,0.06]
[1753363814366,34.87464489,186.36,186.35,0.06]
[1753363814855,16.78468397,186.35,186.23,0.7]
[1753363815069,27.06900711,186.32,186.19,70.73432758]
[1753363815273,26.0,186.29,186.19,70.73432758]
[1753363815468,26.0,186.29,186.2,9.57464489]
[1753363815675,38.64,186.28,186.22,16.78468397]
[1753363815863,38.64,186.28,186.24,8.87464489]
[1753363816068,38.64,186.28,186.25,9.57464489]
[1753363816380,38.64,186.28,186.26,0.7]
[1753363816756,38.64,186.28,186.24,8.87464489]
[1753363816981,8.87464489,186.25,186.19,79.60897247]
[1753363817279,8.87464489,186.24,186.19,79.60897247]
[1753363817481,38.64,186.28,186.2,0.7]
[1753363817673,38.64,186.28,186.22,8.87464489]
[1753363817873,47.51464489,186.28,186.22,9.57464489]
[1753363818180,47.51464489,186.28,186.23,9.57464489]
[1753363818377,47.57464489,186.28,186.24,0.7]
[1753363818564,47.57464489,186.28,186.23,8.87464489]
[1753363818565,8.87464489,186.28,186.25,0.7]
[1753363818767,8.87464489,186.29,186.24,9.15896803]
[1753363818968,8.87464489,186.28,186.22,0.06]
[1753363819274,8.87464489,186.31,186.26,25.65932886]
[1753363819479,8.87464489,186.31,186.25,0.7]
[1753363819480,8.87464489,186.33,186.28,25.65932886]
[1753363819785,38.7,186.33,186.29,0.7]
[1753363819983,47.57464489,186.33,186.27,8.87464489]
[1753363820168,8.87464489,186.31,186.26,17.48468397]
[1753363820368,8.87464489,186.31,186.26,0.7]
[1753363820774,2.80457377,186.41,186.28,16.78468397]
[1753363820959,8.87464489,186.35,186.29,9.57464489]
[1753363821164,13.56715342,186.39,186.34,13.56715342]
[1753363821461,13.56715342,186.39,186.32,0.28432314]
[1753363821462,38.7,186.39,186.35,14.26715342]
[1753363821658,38.7,186.39,186.37,13.56715342]
[1753363821858,38.7,186.39,186.36,0.7]
[1753363821859,38.7,186.39,186.38,0.7]
[1753363822078,38.7,186.39,186.36,13.56715342]
[1753363822284,38.7,186.39,186.34,0.28432314]
[1753363822285,38.7,186.39,186.37,31.05183739]
[1753363822488,148.2,186.54,186.34,0.28432314]
[1753363822489,13.56715342,186.44,186.38,14.26715342]
[1753363822670,38.72,186.44,186.39,13.56715342]
[1753363822991,52.30715342,186.48,186.43,13.56715342]
[1753363823284,38.74,186.48,186.44,0.7]
[1753363823469,2.7967809,186.55,186.44,0.7]
[1753363823470,2.7967809,186.55,186.47,30.63616053]
[1753363823675,2.7967809,186.55,186.49,13.56715342]
[1753363823676,55.10393432,186.55,186.49,13.56715342]
[1753363823878,41.5367809,186.55,186.49,13.56715342]
[1753363824196,81.10393432,186.55,186.49,13.56715342]
[1753363824489,81.10393432,186.55,186.47,17.76900711]
[1753363824490,52.30715342,186.55,186.5,14.26715342]
[1753363824888,2.80238156,186.61,186.52,16.78468397]
[1753363825201,13.56715342,186.59,186.53,14.26715342]
[1753363825367,13.56715342,186.57,186.54,0.7]
[1753363825686,2.79558781,186.61,186.53,0.7]
[1753363825889,52.32715342,186.6,186.55,13.56715342]
[1753363826189,52.32715342,186.6,186.55,14.26715342]
[1753363826564,52.32715342,186.6,186.55,0.7]
[1753363826981,52.32715342,186.6,186.35,4.25570193]
[1753363826982,13.56715342,186.56,186.35,4.25570193]
[1753363827184,13.56715342,186.55,186.49,13.91147656]
[1753363827389,38.76,186.6,186.53,13.56715342]
[1753363827689,2.79558781,186.61,186.57,13.56715342]
[1753363827893,38.76,186.62,186.58,14.26715342]
[1753363828081,52.32715342,186.64,186.59,14.26715342]
[1753363828391,52.32715342,186.64,186.57,16.78468397]
[1753363828392,38.76,186.64,186.61,13.56715342]
[1753363828581,38.76,186.64,186.62,0.7]
[1753363828777,52.32715342,186.64,186.6,16.78468397]
[1753363829176,64.76,186.64,186.56,16.78468397]
[1753363829490,52.32715342,186.64,186.59,13.56715342]
[1753363829684,2.79494141,186.67,186.62,30.35183739]
[1753363829996,38.78,186.67,186.63,14.26715342]
[1753363830292,38.78,186.67,186.64,31.05183739]
[1753363830490,38.78,186.67,186.64,30.35183739]
[1753363830704,13.56715342,186.65,186.6,16.78468397]
[1753363830889,13.56715342,186.64,186.6,16.78468397]
[1753363831191,64.78,186.67,186.61,0.14216157]
[1753363831394,64.78,186.67,186.63,13.56715342]
[1753363831395,38.78,186.67,186.63,13.56715342]
[1753363831594,38.78,186.67,186.62,13.56715342]
[1753363831793,38.78,186.67,186.64,0.7]
[1753363831972,38.78,186.67,186.59,19.87365342]
[1753363831973,13.56715342,186.65,186.59,19.87365342]
[1753363832177,38.78,186.67,186.59,19.87365342]
[1753363832178,13.56715342,186.63,186.59,6.3065]
[1753363832373,13.56715342,186.64,186.59,6.3065]
[1753363832604,13.56715342,186.65,186.6,17.48468397]
[1753363832897,13.56715342,186.65,186.51,39.35616428]
[1753363832898,13.56715342,186.61,186.54,0.7]
[1753363833103,13.56715342,186.57,186.55,16.78468397]
[1753363833280,13.59715342,186.68,186.57,16.78468397]
[1753363833281,0.03,186.68,186.57,16.78468397]
[1753363833480,52.42715342,186.64,186.6,0.28432314]
[1753363833696,52.42715342,186.64,186.61,0.7]
[1753363833870,38.86,186.64,186.62,0.7]
[1753363834072,38.86,186.64,186.63,0.7]
[1753363834276,52.42715342,186.64,186.56,26.7]
[1753363834492,13.56715342,186.6,186.56,0.7]
[1753363834796,13.56715342,186.6,186.42,105.23694041]
[1753363834797,13.56715342,186.57,186.48,13.56715342]
[1753363834998,13.56715342,186.55,186.52,7.3642]
[1753363835326,13.59715342,186.68,186.54,30.35183739]
[1753363835327,13.56715342,186.59,186.54,30.35183739]